bitfinex/quotes_ETHUSD_20260121
["timestamp","ask_amount","ask_price","bid_price","bid_amount"]
[1768997535930,5.44476331,2928.1,2926.3,0.003]
[1768997536130,0.05,2927.6,2926.3,0.003]
[1768997536340,5.49476331,2927.9,2926.3,0.003]
[1768997536572,0.54947633,2927.8,2926.3,0.003]
[1768997536927,0.05,2927.3,2925.3,5.60884777]
[1768997537152,5.49476331,2927.1,2925.2,3.41849962]
[1768997537358,0.05,2926.9,2925.0,2.50929752]
[1768997537763,0.46983414,2926.8,2925.0,5.92605715]
[1768997537944,0.46983414,2926.8,2925.1,0.002]
[1768997538352,5.49476331,2927.1,2925.1,0.01928642]
[1768997538656,0.50976295,2927.1,2925.1,0.01928642]
[1768997538839,0.05,2927.5,2925.1,5.62813419]
[1768997539044,0.5921705,2927.8,2925.1,5.62813419]
[1768997539264,3.45826048,2927.8,2925.2,5.60884777]
[1768997539453,0.04269417,2927.8,2925.3,5.6261202]
[1768997539962,3.45789385,2928.1,2925.3,5.6261202]
[1768997540165,0.05,2927.9,2925.5,5.60884777]
[1768997540340,0.05,2927.5,2925.4,6.8366719]
[1768997540729,0.0427,2927.4,2925.5,5.60884777]
[1768997540934,0.04268979,2928.1,2925.7,5.60884777]
[1768997541130,0.04268979,2928.1,2925.9,5.60884777]
[1768997541366,0.04268979,2928.1,2926.1,5.60884777]
[1768997541538,0.04267959,2928.8,2926.3,5.60884777]
[1768997541731,0.04267959,2928.8,2926.5,5.60884777]
[1768997541936,0.04267959,2928.8,2926.7,5.60884777]
[1768997542137,0.04267959,2928.8,2927.1,5.60884777]
[1768997542338,0.001,2929.1,2927.1,5.62607581]
[1768997544069,0.03966502,2929.8,2927.1,5.62607581]
[1768997544271,0.03966502,2929.8,2927.3,5.60884777]
[1768997544843,0.03966648,2929.7,2927.3,5.60884777]
[1768997545038,0.0396592,2930.2,2927.3,5.60884777]
[1768997546260,0.0396592,2930.2,2927.5,5.60884777]
[1768997546462,0.03966066,2930.1,2927.5,5.60884777]
[1768997546752,0.03966066,2930.1,2927.4,17.0800027]
[1768997546753,0.04065483,2930.5,2927.7,5.60884777]
[1768997547982,5.49476331,2930.1,2927.7,5.60884777]
[1768997548184,0.03966211,2930.0,2927.7,5.60884777]
[1768997548344,3.45271845,2930.0,2927.8,3.41553384]
[1768997548677,5.49476331,2929.7,2927.7,9.0244454]
[1768997548888,0.54947633,2929.6,2927.8,5.60884777]
[1768997549091,0.05,2929.8,2927.8,5.60884777]
[1768997549282,5.48742979,2929.7,2927.5,3.41583277]
[1768997549442,5.48742979,2929.7,2927.3,3.41609323]
[1768997549443,5.49476331,2929.5,2927.7,3.41560278]
[1768997549778,5.48743416,2929.4,2927.7,3.41563878]
[1768997549981,0.04267085,2929.4,2927.8,5.60884777]
[1768997550185,0.04267085,2929.4,2926.8,3.41664942]
[1768997550186,0.05,2929.4,2927.3,5.60884777]
[1768997550361,0.04267231,2929.3,2927.4,6.83200108]
[1768997550547,0.04267231,2929.3,2927.4,10.24800162]
[1768997550752,0.04267231,2929.3,2927.5,5.60884777]
[1768997551158,0.04267231,2929.3,2927.6,0.00886631]
[1768997551482,0.04267376,2929.2,2927.7,5.60884777]
[1768997551679,0.04266502,2929.8,2927.7,5.60884777]
[1768997552058,0.04266502,2929.8,2927.9,5.60884777]
[1768997552253,0.04266502,2929.8,2928.0,6.83060108]
[1768997552450,0.04266502,2929.8,2928.0,12.43944885]
[1768997552856,0.04266502,2929.8,2928.1,5.60884777]
[1768997554057,0.04366211,2930.0,2928.1,5.62904752]
[1768997554262,0.001,2930.0,2928.1,5.62904752]
[1768997554567,0.001,2930.0,2928.3,5.60884777]
[1768997554889,0.001,2930.0,2928.4,5.60884777]
[1768997555578,0.001,2930.0,2928.6,5.60884777]
[1768997556171,0.001,2930.0,2928.8,5.60884777]
[1768997556366,0.001,2930.5,2928.4,5.60884777]
[1768997556583,0.001,2930.5,2928.7,5.60884777]
[1768997556783,0.001,2930.5,2928.8,5.62902823]
[1768997558072,0.0008,2930.7,2928.9,5.60884777]
[1768997558391,5.49476331,2931.7,2929.1,5.60884777]
[1768997558586,5.48740214,2931.6,2929.3,5.60884777]
[1768997558784,5.99850352,2931.5,2929.3,5.60884777]
[1768997558988,0.04264174,2931.4,2929.3,5.60884777]
[1768997559574,0.04263301,2932.0,2929.3,5.60884777]
[1768997559877,0.04263446,2931.9,2929.3,5.60884777]
[1768997560196,5.44476331,2931.4,2929.1,6.82802847]
[1768997560399,5.44476331,2931.2,2929.1,6.82802847]
[1768997560575,0.0426461,2931.1,2929.2,5.60884777]
[1768997560776,5.53740941,2931.1,2928.1,5.60884777]
[1768997562503,5.48743125,2929.6,2927.8,3.41553243]
[1768997562669,5.48743125,2929.6,2927.6,3.41776519]
[1768997562670,6.04350644,2929.5,2927.6,0.002]
[1768997562997,5.49476331,2929.0,2927.6,0.002]
[1768997563215,5.49476331,2929.0,2926.2,5.60884777]
[1768997563216,5.49476331,2928.7,2926.2,5.60884777]
[1768997563398,5.49476331,2928.4,2925.6,5.60884777]
[1768997563605,5.49476331,2928.1,2925.8,3.41776109]
[1768997563788,5.99423964,2928.0,2925.9,3.41774446]
[1768997564103,5.49476331,2927.8,2925.1,0.002]
[1768997564400,0.05,2927.4,2925.3,5.60884777]
[1768997564617,0.05,2927.9,2925.5,5.60884777]
[1768997564797,0.05,2928.2,2925.7,5.60884777]
[1768997565112,0.59947633,2928.2,2925.9,5.60884777]
[1768997565317,0.59947633,2928.2,2926.0,0.02025656]
[1768997565684,0.59947633,2928.2,2925.9,5.60884777]
[1768997565685,7.39761394,2928.0,2925.9,5.60884777]
[1768997566315,0.59947633,2928.2,2926.0,7.24262442]
[1768997566514,0.59947633,2928.2,2925.4,13.6733438]
[1768997566515,0.05,2927.9,2925.4,17.47751667]
[1768997566717,7.44761394,2927.9,2925.5,0.02026893]
[1768997567484,7.44761394,2927.9,2925.6,7.22250882]
[1768997567690,7.44761394,2927.9,2925.8,7.22250882]
[1768997567887,0.05,2928.2,2925.9,7.24277052]
[1768997568085,0.05,2928.2,2925.9,7.22250882]
[1768997568513,7.44761394,2927.9,2925.4,17.47751667]
[1768997568816,7.39761394,2927.9,2925.5,7.22250882]
[1768997568995,0.05,2928.2,2925.5,7.22250882]
[1768997569200,7.44761394,2928.5,2925.5,7.22250882]
[1768997569395,0.74476139,2928.4,2925.7,7.22250882]
[1768997570206,7.44761394,2928.1,2925.7,7.22250882]
[1768997570584,7.44761394,2927.6,2925.8,0.004]
[1768997570789,7.39761394,2927.4,2925.8,0.004]
[1768997571184,7.39761394,2927.1,2925.8,0.004]
[1768997571390,0.05,2927.2,2925.1,0.002]
[1768997571391,8.14237533,2927.0,2925.1,0.002]
[1768997571689,0.0008,2926.1,2925.2,3.41854323]
[1768997572193,0.46973774,2926.8,2925.1,3.42066581]
[1768997572393,7.39761394,2926.3,2924.8,0.0016]
[1768997572599,0.0008,2925.1,2923.4,7.22250882]
[1768997573230,7.39841394,2925.1,2923.2,2.54855372]
[1768997573425,7.39761394,2924.5,2922.0,7.22250882]
[1768997573991,0.05,2924.2,2922.0,10.64471291]
[1768997574191,0.05,2924.2,2922.4,3.42176289]
[1768997574410,0.05,2922.6,2920.1,7.22250882]
[1768997574619,0.05,2922.6,2921.1,3.4233679]
[1768997574620,0.6500826,2922.6,2921.1,3.4233679]
[1768997574846,0.0008,2922.9,2921.1,3.4233679]
[1768997575126,0.0008,2922.9,2921.1,7.22250882]
[1768997575693,0.0008,2923.2,2921.1,7.22250882]
[1768997575895,0.0008,2923.2,2921.1,8.98117478]
[1768997576144,0.0008,2923.2,2921.4,7.22250882]
[1768997576320,0.0008,2923.2,2921.5,7.15761603]
[1768997576691,0.0008,2923.2,2921.6,14.06807288]
[1768997576935,0.0008,2923.2,2921.7,7.22250882]
[1768997577494,0.0008,2923.2,2921.0,3.42995626]
[1768997577495,0.0008,2923.2,2921.1,7.68982862]
[1768997577693,0.0008,2923.2,2921.6,7.68982862]
[1768997578144,0.0008,2923.2,2921.7,7.68982862]
[1768997578433,0.128,2924.1,2921.7,7.68982862]
[1768997578594,0.05,2923.6,2921.8,7.68982862]
[1768997578799,0.05,2923.9,2921.8,7.68982862]
[1768997579309,0.04273942,2924.7,2921.8,7.68982862]
[1768997579507,0.05,2924.1,2921.9,7.68982862]
[1768997579830,0.128,2924.5,2921.9,7.68982862]
[1768997579831,0.05,2923.7,2921.9,7.68982862]
[1768997580528,0.05,2924.0,2921.9,7.68982862]
[1768997580735,3.47003197,2924.0,2921.9,7.68982862]
[1768997580935,0.05,2923.4,2921.9,7.68982862]
[1768997581243,3.42823444,2921.9,2921.0,0.00652025]
[1768997581423,3.47823444,2921.9,2918.9,0.17957847]
[1768997581600,3.42823444,2921.9,2919.4,4.50446206]
[1768997581797,3.54740492,2921.9,2920.5,7.68982862]
[1768997582005,0.05,2923.5,2920.6,7.68982862]
[1768997582320,4.50526206,2925.1,2920.9,7.68982862]
[1768997582321,0.05,2924.1,2920.9,7.68982862]
[1768997582520,0.04275112,2923.9,2921.6,7.68982862]
[1768997582696,0.04275258,2923.8,2921.8,7.68982862]
[1768997582897,0.04353358,2925.1,2922.3,7.68982862]
[1768997583135,0.05,2924.4,2922.3,7.68982862]
[1768997583430,6.88090898,2925.1,2922.3,7.68982862]
[1768997583431,0.04274527,2924.3,2922.3,7.68982862]
[1768997583639,0.03933234,2924.5,2921.7,21.61778646]
[1768997583825,0.05,2925.0,2921.8,7.68982862]
[1768997584030,0.0427365,2924.9,2921.8,7.68982862]
[1768997584194,0.0008,2925.1,2921.8,7.68982862]
[1768997584400,0.04353358,2925.1,2921.8,7.68982862]
[1768997584709,0.04353358,2925.1,2922.0,7.68982862]
[1768997585112,0.05,2924.5,2922.0,7.68982862]
[1768997585328,0.04274381,2924.4,2922.1,7.7136083]
[1768997585665,0.04274381,2924.4,2921.0,4.50446206]
[1768997585666,0.05,2923.9,2921.1,7.68982862]
[1768997585800,0.04275258,2923.8,2921.8,3.42253563]
[1768997586004,0.04275258,2923.8,2921.9,0.00958495]
[1768997586345,0.05,2923.1,2920.8,7.68982862]
[1768997586644,0.128,2923.7,2921.1,0.002]
[1768997586645,0.04276428,2923.0,2921.1,0.002]
[1768997586809,7.66500981,2922.8,2920.3,0.20333248]
[1768997587001,0.05,2921.9,2920.3,0.20333248]
[1768997587402,7.61500981,2922.1,2920.3,0.20333248]
[1768997587643,0.05,2921.9,2920.3,0.20333248]
[1768997588010,0.45932581,2921.9,2920.3,0.20333248]
[1768997588208,0.54632581,2921.8,2920.3,0.20333248]
[1768997588408,1.28174068,2922.7,2920.3,0.20333248]
[1768997588409,0.05,2922.4,2920.3,0.20333248]
[1768997588610,0.04277013,2922.6,2920.3,0.20333248]
[1768997588834,0.0008,2920.7,2920.3,0.20333248]
[1768997589006,0.0008,2921.0,2920.3,0.20333248]
[1768997589212,0.09277306,2922.4,2920.3,3.62763077]
[1768997589438,0.86355135,2922.4,2920.3,3.65146528]
[1768997589609,0.86355135,2922.4,2920.4,7.68982862]
[1768997589610,0.04277306,2922.4,2920.4,7.68982862]
[1768997589809,0.04276574,2922.9,2920.6,7.68982862]
[1768997590801,0.04276574,2922.9,2920.7,3.42383675]
[1768997591004,0.04276574,2922.9,2920.6,7.68982862]
[1768997591322,0.04276574,2922.9,2920.3,0.20333248]
[1768997591323,0.05,2922.0,2920.3,0.20333248]
[1768997591511,7.66500981,2922.3,2920.3,0.20333248]
[1768997591712,0.80927697,2922.2,2920.3,0.20333248]
[1768997592410,0.80927697,2922.2,2920.6,3.42394985]
[1768997592742,0.04277745,2922.1,2920.4,3.42411719]
[1768997592949,0.04277745,2922.1,2920.3,0.20333248]
[1768997593122,0.04277745,2922.1,2920.3,7.05190537]
[1768997593311,0.04277745,2922.1,2920.4,7.71366549]
[1768997593639,0.04276867,2922.7,2920.6,7.68982862]
[1768997593848,0.04276867,2922.7,2920.7,7.71365352]
[1768997594153,0.04276867,2922.7,2920.9,7.68982862]
[1768997594318,0.04276867,2922.7,2921.1,7.68982862]
[1768997594518,0.04277013,2922.6,2921.1,7.68982862]
[1768997594719,0.04276282,2923.1,2921.2,3.42325071]
[1768997595450,0.04276282,2923.1,2920.3,0.20333248]
[1768997595451,8.99902525,2922.5,2920.3,0.20333248]
[1768997595758,8.99902525,2922.5,2920.3,9.72383867]
[1768997595759,0.94267559,2922.4,2920.3,9.72383867]
[1768997595936,0.04277306,2922.4,2921.1,6.84672329]
[1768997596137,0.128,2923.7,2921.1,6.84672329]
[1768997596138,0.04276867,2922.7,2921.1,6.84672329]
[1768997596323,0.05,2923.3,2921.1,6.84672329]
[1768997596324,0.04277013,2922.6,2921.2,9.52050619]
[1768997596522,0.04276135,2923.2,2921.2,9.52050619]
[1768997596727,0.04276135,2923.2,2921.3,6.84626706]
[1768997597031,0.04276135,2923.2,2921.4,9.52050619]
[1768997597419,0.04275258,2923.8,2921.4,9.52050619]
[1768997597619,0.04275404,2923.7,2921.4,9.52050619]
[1768997598638,0.001,2922.4,2921.4,9.52050619]
[1768997598856,0.001,2922.4,2920.8,3.42365255]
[1768997599020,9.09279831,2922.4,2920.6,0.002]
[1768997599222,0.05,2922.1,2920.6,0.002]
[1768997599551,0.04277891,2922.0,2920.6,0.002]
[1768997600054,0.90927983,2922.3,2920.6,0.002]
[1768997600055,0.04277599,2922.2,2920.6,0.002]
[1768997600418,9.04902525,2922.1,2920.6,0.002]
[1768997600646,8.99902525,2922.1,2920.6,0.002]
[1768997600848,0.94768144,2922.0,2920.6,0.002]
[1768997601253,0.04277891,2922.0,2920.6,0.002]
[1768997601464,0.001,2922.4,2920.8,9.52050619]
[1768997601753,0.04275696,2923.5,2920.8,9.52050619]
[1768997601918,0.04275258,2923.8,2920.8,9.52050619]
[1768997602138,0.05,2922.9,2920.8,9.52050619]
[1768997602341,0.0427672,2922.8,2920.8,9.52050619]
[1768997602773,0.0427672,2922.8,2920.9,6.84720462]
[1768997603377,0.0427672,2922.8,2921.0,0.03423485]
[1768997603787,0.0427672,2922.8,2920.9,16.36771081]
[1768997604667,0.0427672,2922.8,2921.0,0.03423485]
[1768997604966,0.0427672,2922.8,2921.1,6.8467358]
[1768997605169,0.04276867,2922.7,2921.1,6.8467358]
[1768997605369,0.04276282,2923.1,2921.1,10.2701037]
[1768997605569,0.04276282,2923.1,2921.1,6.8467358]
[1768997605868,0.05,2922.5,2920.6,0.002]
[1768997606077,0.04277306,2922.4,2920.9,3.42353747]
[1768997606279,0.04277306,2922.4,2920.6,0.002]
[1768997606445,0.04276867,2922.7,2920.9,3.42356008]
[1768997606771,0.04276867,2922.7,2921.0,3.42347557]
[1768997606987,0.04276867,2922.7,2920.7,6.8476735]
[1768997607165,0.04276867,2922.7,2920.8,0.03423719]
[1768997607545,0.05,2922.5,2920.6,3.42591663]
[1768997607848,0.04277306,2922.4,2920.6,6.84987061]
[1768997608652,0.04277306,2922.4,2920.6,3.42591663]
[1768997608851,0.04277306,2922.4,2920.6,6.84987061]
[1768997609263,0.04277306,2922.4,2920.7,0.03423836]
[1768997609468,9.04902525,2921.7,2920.4,0.002]
[1768997609672,0.05,2921.3,2920.4,0.002]
[1768997609838,0.05,2921.3,2920.3,0.20333248]
[1768997609839,0.05,2921.0,2919.6,1e-08]
[1768997610037,0.05,2920.6,2919.6,1e-08]
[1768997610647,0.05,2920.1,2918.9,0.0046]
[1768997610847,0.05,2920.6,2918.9,0.0046]
[1768997612165,0.05,2920.6,2918.9,0.00060572]
[1768997612376,0.0008,2919.2,2918.9,0.00060572]
[1768997612973,0.0008,2919.2,2918.1,3.42688735]
[1768997613174,0.0008,2919.2,2918.2,0.00863939]
[1768997613342,0.05,2920.3,2918.2,9.52914558]
[1768997613542,0.05,2920.3,2918.1,13.7075494]
[1768997613543,0.05,2920.3,2918.1,10.28066205]
[1768997613778,0.05,2919.7,2918.1,6.8537747]
[1768997613965,0.05,2919.7,2918.1,3.426887]
[1768997614145,0.05,2919.7,2917.6,12.94793024]
[1768997614345,0.05,2920.0,2918.1,6.8537747]
[1768997614564,0.05,2920.0,2918.1,19.80116824]
[1768997615153,0.95490253,2920.3,2918.2,0.00862617]
[1768997615877,0.95490253,2920.3,2917.7,3.42733911]
[1768997615878,0.05,2919.2,2917.7,3.42733911]
[1768997616078,0.178,2919.9,2917.2,9.52210619]
[1768997616278,0.91770253,2919.8,2918.1,3.42688735]
[1768997616480,0.90490253,2920.3,2918.2,9.529135]
[1768997616775,0.90490253,2920.3,2918.1,17.13443675]
[1768997616776,0.04279649,2920.8,2918.4,9.52050619]
[1768997616977,0.04279649,2920.8,2918.1,13.7075494]
[1768997616978,0.05,2920.3,2918.1,3.42688735]
[1768997617168,0.09280382,2920.3,2917.9,6.85424448]
[1768997617481,0.05,2920.0,2917.9,3.42712224]
[1768997617777,0.05,2920.1,2917.9,6.85424448]
[1768997617975,0.90918305,2920.0,2917.9,10.28136672]
[1768997618677,0.04280968,2919.9,2917.9,10.28136672]
[1768997618882,0.04280968,2919.9,2917.9,19.80187291]
[1768997619052,0.04280968,2919.9,2918.2,9.52050619]
[1768997619252,0.04280968,2919.9,2918.3,0.00862588]
[1768997619452,0.04279942,2920.6,2918.4,9.52050619]
[1768997619654,0.04279942,2920.6,2918.6,9.52050619]
[1768997619948,0.04279942,2920.6,2918.1,10.28066205]
[1768997620148,0.05,2920.2,2918.1,6.8537747]
[1768997620351,0.04280675,2920.1,2918.1,6.8537747]
[1768997620586,0.04280675,2920.1,2918.1,10.28066205]
[1768997620801,0.04280675,2920.1,2918.2,9.52050619]
[1768997621008,0.04280675,2920.1,2918.3,10.2799575]
[1768997621206,12.4225903,2921.0,2918.4,9.52912781]
[1768997621207,0.04279795,2920.7,2918.4,9.52912781]
[1768997621393,0.04279795,2920.7,2918.5,9.52050619]
[1768997621706,0.04279795,2920.7,2918.7,9.52050619]
[1768997621881,0.04278184,2921.8,2918.9,9.52050619]
[1768997622074,8.99902525,2920.1,2917.5,9.52050619]
[1768997622277,0.94771074,2920.0,2917.6,0.00863455]
[1768997622584,9.04902525,2919.2,2917.2,0.0016]
[1768997622796,0.05,2919.6,2917.2,9.52210619]
[1768997623095,9.04902525,2919.3,2917.2,0.0016]
[1768997623289,9.0418452,2919.2,2917.2,0.0016]
[1768997623502,8.99902525,2919.0,2916.8,0.00865144]
[1768997623707,0.0008,2917.5,2914.3,3.43129243]
[1768997623872,0.0508,2917.5,2914.4,3.4312056]
[1768997624070,0.0508,2917.5,2916.1,9.52050619]
[1768997624302,0.0008,2917.5,2915.9,3.42941582]
[1768997624573,0.05,2918.7,2916.7,9.52050619]
[1768997624779,0.05,2918.4,2916.7,9.52050619]
[1768997625077,0.04282728,2918.7,2917.9,0.002]
[1768997625270,0.04282875,2918.6,2917.9,0.002]
[1768997625514,11.79584412,2920.2,2917.9,0.002]
[1768997625817,0.04280968,2919.9,2917.9,11.48048054]
[1768997626109,0.04279795,2920.7,2918.1,11.47848054]
[1768997626275,15.21887801,2921.4,2918.3,11.47848054]
[1768997626276,0.04279942,2920.6,2918.3,11.47848054]
[1768997626476,0.04279649,2920.8,2918.3,11.47848054]
[1768997626684,0.05,2920.6,2918.3,11.47848054]
[1768997626979,0.04280089,2920.5,2918.3,11.47848054]
[1768997627181,0.05,2920.5,2918.3,11.47848054]
[1768997627403,0.05,2920.2,2918.2,3.42668742]
[1768997627605,0.04380675,2920.1,2917.9,0.002]
[1768997627781,0.04380675,2920.1,2918.4,11.47848054]
[1768997627979,0.04080675,2920.1,2918.4,11.47848054]
[1768997628307,0.04280235,2920.4,2918.4,11.47848054]
[1768997628517,0.05,2919.9,2917.9,0.002]
[1768997628720,0.05,2919.5,2917.9,0.002]
[1768997629014,11.96666113,2919.4,2917.1,11.47848054]
[1768997629213,18.77472706,2919.4,2917.1,11.47848054]
[1768997629418,0.05,2919.0,2917.1,11.47848054]
[1768997629717,0.04282435,2918.9,2917.2,11.48913666]
[1768997629914,0.05,2919.1,2916.6,11.47848054]
[1768997630081,0.05,2918.4,2915.9,11.47848054]
[1768997630413,0.178,2918.9,2916.3,11.47848054]
[1768997630611,0.70215644,2919.2,2916.9,14.9066994]
[1768997630811,3.42482577,2919.9,2917.2,11.47848054]
[1768997630812,0.05,2919.9,2917.2,11.47848054]
[1768997630978,0.04281701,2919.4,2917.2,11.47848054]
[1768997631178,0.04281701,2919.4,2917.3,14.91695696]
[1768997631414,0.04281701,2919.4,2917.3,11.47848054]
[1768997632217,0.04281848,2919.3,2917.3,11.47848054]
[1768997632404,0.22179957,2920.2,2917.4,11.47848054]
[1768997632605,0.04280528,2920.2,2917.4,11.47848054]
[1768997632914,0.04280235,2920.4,2917.4,11.47848054]
[1768997633083,0.04280235,2920.4,2917.5,10.28277633]
[1768997633283,0.04280235,2920.4,2917.6,11.47848054]
[1768997633509,0.04280382,2920.3,2917.6,11.47848054]
[1768997633721,0.04279356,2921.0,2918.1,11.47848054]
[1768997633903,0.04278184,2921.8,2918.8,11.47848054]
[1768997635121,11.98870442,2924.8,2917.6,0.128]
[1768997635122,0.05,2922.5,2919.6,13.70050688]
[1768997635305,0.7939011,2923.0,2920.2,11.47848054]
[1768997635509,0.17879503,2922.6,2920.9,11.47848054]
[1768997635820,0.04375843,2923.4,2920.9,11.47848054]
[1768997636007,0.04275989,2923.3,2920.9,11.47848054]
[1768997636219,0.04275989,2923.3,2920.3,14.5]
[1768997636220,0.001,2923.4,2921.6,11.47848054]
[1768997636785,0.04274088,2924.6,2922.3,11.47848054]
[1768997637016,0.04274234,2924.5,2922.3,11.47848054]
[1768997637182,0.04353358,2925.1,2922.5,11.47848054]
[1768997637383,3.46225953,2925.1,2922.5,11.47848054]
[1768997637688,0.34622595,2925.0,2922.5,11.47848054]
[1768997637908,0.0427365,2924.9,2922.5,11.47848054]
[1768997638084,0.04353358,2925.1,2922.5,11.47848054]
[1768997638283,0.04273504,2925.0,2923.0,10.41816312]
[1768997638506,0.0008,2925.1,2923.0,10.41816312]
[1768997639388,0.0008,2925.1,2923.1,17.26021436]
[1768997639917,0.0008,2925.1,2923.2,10.41816312]
[1768997640219,0.0008,2925.1,2922.4,10.41816312]
[1768997640421,0.04353358,2925.1,2922.4,10.41816312]
[1768997640726,11.26536602,2924.6,2921.6,10.41816312]
[1768997640928,0.128,2924.3,2921.6,10.41816312]
[1768997641095,0.05,2924.4,2920.1,14.5]
[1768997641096,0.05,2923.6,2920.9,10.41816312]
[1768997641430,10.26202365,2923.4,2920.9,10.41816312]
[1768997641593,0.05,2923.2,2920.9,10.41816312]
[1768997641928,0.04276282,2923.1,2920.9,10.41816312]
[1768997642105,0.05,2922.3,2919.0,10.41816312]
[1768997642300,0.05,2921.6,2919.0,10.41816312]
[1768997642504,0.05,2921.2,2918.2,10.41816312]
[1768997642684,0.128,2921.7,2918.4,10.41816312]
[1768997642685,0.04279209,2921.1,2918.4,10.41816312]
[1768997642890,0.04279356,2921.0,2919.4,10.41816312]
[1768997643090,0.04278184,2921.8,2919.4,10.41816312]
[1768997643515,0.04278184,2921.8,2919.5,3.42515437]
[1768997643787,0.3515221,2921.7,2919.5,3.42515437]
[1768997643988,0.3515221,2921.7,2919.6,0.03421852]
[1768997644312,0.04114063,2921.6,2919.5,0.03421852]
[1768997644518,0.09114063,2921.6,2918.6,10.41816312]
[1768997644691,0.09114063,2921.6,2918.9,3.42594248]
[1768997644897,0.09114063,2921.6,2918.6,10.41816312]
[1768997644898,0.09114063,2921.6,2919.0,3.46007726]
[1768997645092,0.09114063,2921.6,2919.0,0.0342583]
[1768997645352,0.09114063,2921.6,2917.3,3.42977679]
[1768997645353,0.05,2920.7,2917.9,10.41816312]
[1768997645622,3.47353238,2921.0,2918.1,10.41816312]
[1768997645831,0.3514673,2920.9,2918.1,10.41816312]
[1768997647518,3.42371952,2920.8,2918.2,6.85353984]
[1768997647718,6.84743904,2920.8,2918.2,3.42676992]
[1768997647921,3.77511182,2920.9,2918.2,6.85353984]
[1768997648221,0.38251118,2920.8,2918.2,6.85353984]
[1768997648940,0.38251118,2920.8,2918.1,10.41816312]
[1768997651029,11.31536602,2919.9,2918.0,0.002]
[1768997651236,0.05,2919.9,2917.5,0.002]
[1768997651442,6.84837692,2920.4,2917.8,13.84540282]
[1768997651611,0.68483769,2920.3,2917.9,0.03427122]
[1768997652420,0.68483769,2920.3,2917.9,10.45243434]
[1768997652626,0.68483769,2920.3,2917.9,10.41816312]
[1768997652994,0.68483769,2920.3,2916.4,3.4288224]
[1768997652995,0.05,2918.1,2915.9,10.41816312]
[1768997653322,0.2335703,2920.0,2916.1,4.5179333]
[1768997653323,0.05,2919.5,2916.1,4.5179333]
[1768997653539,6.85025344,2919.6,2917.1,17.27420117]
[1768997653751,0.69002534,2919.5,2917.2,10.41816312]
[1768997654023,6.84898388,2920.2,2917.2,10.41816312]
[1768997654251,0.04114063,2920.1,2917.2,10.41816312]
[1768997655324,0.128,2920.6,2917.1,17.14022438]
[1768997655325,0.04114063,2920.2,2917.6,10.41816312]
[1768997655537,0.04114063,2920.1,2917.7,10.28207148]
[1768997655745,0.04114063,2920.5,2917.8,9.51639623]
[1768997656295,0.38763845,2920.5,2917.8,9.51639623]
[1768997657398,0.05,2920.9,2917.8,9.51639623]
[1768997657399,0.04114063,2920.9,2917.8,9.51639623]
[1768997657595,0.04114063,2920.9,2917.7,17.1367858]
[1768997657596,3.46479934,2920.9,2918.0,9.51639623]
[1768997657795,6.93845805,2920.9,2918.0,9.51639623]
[1768997657995,6.89731742,2920.9,2918.0,9.51639623]
[1768997658197,0.04114063,2920.8,2918.0,9.51639623]
[1768997658401,0.35147993,2920.7,2918.0,9.51639623]
[1768997658607,0.04114063,2920.6,2918.0,9.51639623]
[1768997658911,0.128,2921.4,2918.0,9.51639623]
[1768997658912,0.04114063,2921.1,2918.1,9.51639623]
[1768997659233,0.04114063,2921.0,2918.1,9.51639623]
[1768997659434,0.04114063,2921.5,2918.1,9.51639623]
[1768997659635,0.04114063,2921.5,2918.4,9.51639623]
[1768997659836,3.42282356,2921.6,2918.4,9.51639623]
[1768997660140,0.38342299,2921.5,2918.4,9.51639623]
[1768997660303,0.04114063,2921.5,2918.8,9.51639623]
[1768997660639,0.04114063,2921.9,2919.5,9.51639623]
[1768997660841,3.592,2923.1,2919.5,9.51639623]
[1768997660842,0.04114063,2922.7,2919.5,9.51639623]
[1768997661015,0.04114063,2922.6,2920.1,4.52242595]
[1768997661218,0.04114063,2923.4,2920.2,9.51639623]
[1768997661539,0.72934663,2923.4,2920.2,9.51639623]
[1768997661850,4.15003877,2923.4,2920.4,9.51639623]
[1768997662006,6.84158314,2923.3,2920.4,9.51639623]
[1768997662206,0.04114063,2923.2,2920.4,9.51639623]
[1768997662746,0.05,2923.1,2920.4,9.51639623]
[1768997662953,0.04114063,2923.0,2920.4,9.51639623]
[1768997663717,0.40119322,2923.1,2920.6,9.51639623]
[1768997663941,3.46229929,2923.0,2920.6,9.51639623]
[1768997664151,0.04114063,2923.0,2920.6,9.51639623]
[1768997664531,0.688206,2923.4,2920.4,6.84831533]
[1768997664532,0.05,2922.7,2920.4,6.84831533]
[1768997664713,0.04114063,2922.6,2920.5,9.51639623]
[1768997664918,0.05,2923.2,2920.5,9.51639623]
[1768997664919,0.04114063,2923.1,2920.5,9.51639623]
[1768997665121,0.6159497,2923.1,2920.5,9.51639623]
[1768997665460,0.04114063,2923.1,2920.5,9.51639623]
[1768997665634,6.84228532,2923.0,2920.6,3.42395398]
[1768997665968,0.04114063,2922.9,2920.6,3.42395398]
[1768997666148,0.04114063,2922.9,2920.7,9.51639623]
[1768997666349,0.04114063,2923.4,2920.7,9.51639623]
[1768997666753,0.05,2923.3,2920.7,9.51639623]
[1768997666926,0.05,2923.3,2920.0,9.51639623]
[1768997666927,0.05,2922.6,2920.0,9.51639623]
[1768997667124,0.04114063,2922.5,2920.0,9.51639623]
[1768997667430,0.04114063,2922.5,2920.4,9.51639623]
[1768997667656,3.46291032,2922.5,2920.5,3.42406242]
[1768997667844,0.04114063,2922.5,2920.5,3.42406242]
[1768997668169,0.04114063,2922.5,2920.6,9.51639623]
[1768997668586,0.128,2923.0,2920.6,9.51639623]
[1768997668587,0.04114063,2922.9,2920.6,9.51639623]
[1768997669549,0.04114063,2923.0,2920.6,9.51639623]
[1768997669750,10.2637791,2922.9,2920.6,9.51639623]
[1768997669952,0.04114063,2922.8,2920.6,9.51639623]
[1768997670158,0.04114063,2922.8,2920.6,12.94033344]
[1768997670344,0.04114063,2922.8,2920.6,16.36428742]
[1768997670675,0.04114063,2922.8,2920.7,9.51639623]
[1768997670872,0.34624003,2922.7,2920.7,9.51639623]
[1768997671077,0.04114063,2922.6,2920.7,9.51639623]
[1768997671280,0.25080848,2922.7,2920.9,9.51639623]
[1768997671470,0.05,2922.1,2919.2,3.42555927]
[1768997671646,0.05,2922.1,2919.4,9.51639623]
[1768997671647,6.84486122,2921.9,2919.4,9.51639623]
[1768997671847,0.73790984,2921.8,2919.4,9.51639623]
[1768997672152,0.03423719,2921.7,2919.4,9.51639623]
[1768997673381,3.45661626,2922.0,2919.4,9.51639623]